Cogmind - Beta 15 *** ADVENTURER MODE // 2025.05.18 @ 21:11:24 Player: Willowed Result: Destroyed by Y-45 Defender with Beam Rifle Performance ------------- Evolutions (2) 1000 Regions Visited (3) 600 Robots Destroyed (44) 220 Value Destroyed (973) 973 Prototype IDs (1) 20 Alien Tech Used (0) 0 Bonus (0) 0 TOTAL SCORE: 2813 Bonus ------- None Cogmind --------- Core Integrity 0/550 Matter 14/300 Energy 14/240 System Corruption 2% Temperature Cool (23) Movement Walking (122) Location -8/Materials Parts ------- > --- POWER (1) -------- Nuclear Core > --- PROPULSION (4) --- Aluminum Leg Aluminum Leg Aluminum Leg Titanium Leg > --- UTILITY (4) ------ Large Storage Unit Advanced Targeting Computer Hardlight Generator > --- WEAPON (2) ------- (None) > --- INVENTORY (15) --- Nuclear Core Nuclear Core Light Treads Improved Heat Sink Large Matter Pod (0) Hardened Light Armor Plating Improved Light Armor Plating Improved Datajack Peak State ------------ > --- POWER ------------ Nuclear Core > --- PROPULSION ------- Aluminum Leg Aluminum Leg Aluminum Leg Titanium Leg > --- UTILITY ---------- Heat Sink Large Storage Unit Insulated Plating Hardlight Generator > --- WEAPON ----------- High-powered Shotgun > --- INVENTORY -------- Nuclear Core Nuclear Core Light Treads Improved Heat Sink Large Matter Pod Hardened Light Armor Plating Improved Light Armor Plating Grenade Launcher Improved Datajack [Rating: 22] Favorites ----------- Power Nuclear Core Engine Ion Engine Power Core Nuclear Core Propulsion Light Treads Treads Light Treads Leg Aluminum Leg Utility High-capacity Battery Device Heat Sink Storage High-capacity Battery Processor Advanced Visual Processing Unit Protection Core Shielding Weapon Grenade Launcher Energy Gun Improved EM Shotgun Ballistic Gun Assault Rifle Launcher Grenade Launcher Build | -11 -10 -9 -8 ------- Run | Yrd Mat Mat Mat Slots Evolved 4 | . . 2 2 Power . | . . . . Propulsion 2 | . . 1 1 Utility 2 | . . 1 1 Weapon . | . . . . Parts Attached 36 | 6 3 12 15 Power 4 | 1 . 2 1 Engine 2 | 1 . 1 . Core 2 | . . 1 1 Reactor . | . . . . Propulsion 8 | 2 . 2 4 Treads 4 | 2 . 2 . Leg 4 | . . . 4 Wheel . | . . . . Hover . | . . . . Flight . | . . . . Utility 14 | 1 2 2 9 Device 3 | . . . 3 Storage 4 | 1 2 1 . Processor 2 | . . . 2 Hackware . | . . . . Protection 5 | . . 1 4 Artifact . | . . . . Weapon 10 | 2 1 6 1 Energy Gun 1 | . . 1 . Energy Cannon . | . . . . Ballistic Gun 4 | 2 . 1 1 Ballistic Cannon . | . . . . Launcher 5 | . 1 4 . Special Weapon . | . . . . Impact Weapon . | . . . . Slashing Weapon . | . . . . Piercing Weapon . | . . . . Special Melee Weapon . | . . . . Unidentified Prototypes 1 | . . 1 . Parts Lost 16 | . . 5 11 Power 1 | . . . 1 Propulsion 3 | . . 2 1 Utility 6 | . . 1 5 Weapon 6 | . . 2 4 Highest Loss Streak 4 | . . 4 4 To Critical Strikes . | . . . . Average Backups 6 | 2 4 6 6 Power . | . . . 1 Propulsion . | 1 . . . Utility 2 | . . 2 2 Weapon 1 | . 3 2 . Tool/Special . | . . . . Unused Backups 13 | 3 2 2 6 Power 3 | 1 . . 2 Propulsion 2 | 2 . . . Utility 4 | . . 1 3 Weapon 3 | . 2 1 . Tool/Special 1 | . . . 1 Average Slot Usage (%) 79 | . 98 82 68 Engine 5 | . 14 7 . Core 4 | . . 2 7 Treads 18 | . 28 25 6 Leg 4 | . . . 11 Device 3 | . . . 9 Storage 18 | . 26 22 11 Processor 1 | . . . 2 Protection 5 | . . 5 7 Ballistic Gun 9 | . 26 7 3 Launcher 8 | . 1 11 8 Peak Build Rating 22 | 6 7 11 22 Average Rating 11 | 2 6 9 15 On Entrance 6 | . 6 7 11 Naked Turns . | . . . . Heaviest Build 49 | 14 24 38 49 Greatest Support 60 | 40 40 60 47 Greatest Overweight (x) 14 | 1 . 1 14 Average Overweight (x) . | . . . 1 Largest Inventory Capacity 15 | 8 10 15 15 Average Capacity 11 | 7 8 10 15 Most Carried 10 | 8 8 10 10 Average Carried 6 | 2 4 6 6 Final Capacity 15 | 8 10 15 15 Final Carried 8 | 1 8 6 8 Class Distribution -------------------- 84% | Mutant 15% | Scavenger-Mutant Dominant Class ---------------- Mutant | -10/Materials Mutant | -9/Materials Mutant | -8/Materials Resources | -11 -10 -9 -8 ----------- Run | Yrd Mat Mat Mat Matter Collected 706 | 256 100 240 110 Remotely . | . . . . Salvage Created 955 | . 107 704 144 Parts 68 | . 12 41 15 Haulers Intercepted 1 | . 1 . . Recyclers Shooed 2 | . . 2 . Parts Field Recycled . | . . . . Retrieved Matter . | . . . . Parts Self-Destructed . | . . . . Prevented . | . . . . Kills | -11 -10 -9 -8 ------- Run | Yrd Mat Mat Mat Combat Hostiles Destroyed 28 | . 4 21 3 Guns 9 | . 3 3 3 AOE 19 | . 1 18 . Classes Destroyed 11 | . 3 7 1 Worker 3 | . . 2 1 Builder 5 | . . 4 1 Tunneler 1 | . . . 1 Hauler 1 | . 1 . . Recycler 2 | . . 2 . Mechanic 1 | . . 1 . Watcher 3 | . . 1 2 Swarmer 9 | . 3 6 . Grunt 14 | . 1 10 3 Duelist 1 | . . 1 . Sentry 4 | . . 4 . Best Kill Streak 13 | . 3 13 3 Combat Bots Only 7 | . 3 7 2 Max Kills in Single Turn 3 | . 1 3 2 Gunslinging . | . . . . Exploded 3 | . 1 3 . Melee . | . . . . Uniques/NPCs Destroyed . | . . . . Combat | -11 -10 -9 -8 -------- Run | Yrd Mat Mat Mat Hostile Shots Fired 314 | . 24 117 173 Missed 78 | . 5 34 39 Hits 236 | . 19 83 134 Melee 7 | . . 7 . Projectile 229 | . 19 76 134 Critical Strikes 12 | . . 7 5 Actively Blocked 2 | . . 2 . Damage Taken 2815 | . 159 1127 1529 Core 779 | . . 222 557 Absorbed by Shields 156 | . . . 156 Redirected to Shielding 36 | . . 36 . Ignored by Resistances 852 | . 47 326 479 Regen/Repaired (Parts) 127 | . . . 127 Core Remaining (%) 81 | 100 100 44 . Volleys Fired 59 | . 8 37 14 Largest 2 | . 2 2 2 Hottest 63 | . 50 60 63 Shots Fired 97 | . 16 58 23 Gun 52 | . 14 28 10 Cannon . | . . . . Launcher 45 | . 2 30 13 Special . | . . . . Kinetic 52 | . 14 28 10 Thermal . | . . . . Explosive 45 | . 2 30 13 Electromagnetic . | . . . . Robot Hit Streak 14 | . 11 14 11 Robot Miss Streak 2 | . 1 1 2 Penetration Max . | . . . . Secondary Targets 1 | . 1 . . Max Gunslinging Chain 1 | . 1 . . Shots Hit Robots 75 | . 13 45 17 Core Hits 91 | . 6 59 26 Critical Kills . | . . . . Critical Parts Destroyed . | . . . . Critical Strikes . | . . . . Melee Attacks . | . . . . Impact . | . . . . Slashing . | . . . . Piercing . | . . . . Sneak Attacks . | . . . . Combat Hostiles . | . . . . Follow-up Attacks . | . . . . Damage Inflicted 3008 | . 260 1999 749 Guns 663 | . 157 332 174 Cannons . | . . . . Explosions 2333 | . 103 1667 563 Melee . | . . . . Ramming 12 | . . . 12 Kinetic 663 | . 157 332 174 Thermal . | . . . . Explosive 2333 | . 103 1667 563 Electromagnetic . | . . . . Impact . | . . . . Slashing . | . . . . Piercing . | . . . . Highest Corruption 2 | . . . 2 Average Corruption 1 | . . . 1 Corruption Purged . | . . . . Corruption Blocked . | . . . . Effects 7 | . . . 7 Message Errors 3 | . . . 3 Matter Fused 1 | . . . 1 Energy Discharges 1 | . . . 1 Misfires 1 | . . . 1 Alerts 1 | . . . 1 Overload Shots . | . . . . Overflow Damage 78 | . . 55 23 Projectiles . | . . . . Explosions 78 | . . 55 23 Melee . | . . . . Knockbacks . | . . . . Impact . | . . . . Kinetic . | . . . . Secondary . | . . . . Self-Inflicted Damage 293 | . 26 199 68 Shots 15 | . 2 11 2 Rammed 15 | . . . 15 Targets Rammed 18 | . . . 18 Kicked 3 | . . . 3 Crushed . | . . . . Highest Temperature 25 | . 2 25 2 Average Temperature 6 | . 2 8 1 Received Heat Transfer 1497 | . 18 390 1089 Siege Activations . | . . . . Martial Activations . | . . . . Shielding Activations . | . . . . Robots Disrupted . | . . . . Combat Hostiles . | . . . . Robots Corrupted . | . . . . Combat Hostiles . | . . . . Parts Fried . | . . . . Impact Corruptions . | . . . . Robots Melted . | . . . . Combat Hostiles . | . . . . Parts Melted . | . . . . Heat Transferred . | . . . . Parts Sabotaged . | . . . . Parts Stolen . | . . . . Parts Stripped . | . . . . Power Chain Reactions . | . . . . Alert | -11 -10 -9 -8 ------- Run | Yrd Mat Mat Mat Maximum Alert Level 1 | . . 1 . Low Security (%) 91 | 100 100 80 100 Level 1 8 | . . 19 . Level 2 . | . . . . Level 3 . | . . . . Level 4 . | . . . . Level 5 . | . . . . High Security . | . . . . Max Security . | . . . . Peak Influence 390 | . 88 390 50 Initial 30 | . . 20 30 Average 41 | . 21 79 9 Influence Increases 1001 | . 118 711 172 Destroy 0b10 Robot/C 560 | . 80 420 60 Destroy 0b10 Robot/NC 80 | . 5 50 25 Destroy Leader 148 | . 22 112 14 Successful Hack 6 | . . 6 . Destroy Structure 207 | . 11 123 73 Influence Decreases 1001 | . 60 684 257 Entered New Map 93 | . . 38 55 Time Decay 518 | . 60 296 162 Lost Part 90 | . . 50 40 Purge Threat 300 | . . 300 . Squads Dispatched 6 | . 1 3 2 Investigation 3 | . 1 1 1 Extermination . | . . . . Reinforcement 3 | . . 2 1 Assault . | . . . . Garrison . | . . . . Intercept . | . . . . Searches Triggered . | . . . . Construction Impeded 1 | . . 1 . Haulers Reinforced . | . . . . Active Scanning Responses . | . . . . Cargo Convoy Interrupts . | . . . . Stealth | -11 -10 -9 -8 --------- Run | Yrd Mat Mat Mat Distress Signals 2 | . . 2 . Communications Jammed . | . . . . Distress Signals . | . . . . Times Spotted 38 | . 5 24 9 Peak Tracking Total 7 | . 3 7 4 Tactical Retreats . | . . . . Traps | -11 -10 -9 -8 ------- Run | Yrd Mat Mat Mat Traps Triggered 1 | . . 1 . Indirectly . | . . . . Trap Hack Attempts . | . . . . Triggered . | . . . . Disarmed . | . . . . Reprogrammed . | . . . . Reused . | . . . . Traps Extracted . | . . . . Installed . | . . . . Triggered . | . . . . Machines | -11 -10 -9 -8 ---------- Run | Yrd Mat Mat Mat Machines Disabled . | . . . . Max in Single Turn . | . . . . Machines Repaired . | . . . . Machines Dismantled . | . . . . Machines Sabotaged . | . . . . Overloaded Fab Kills . | . . . . Hacking | -11 -10 -9 -8 --------- Run | Yrd Mat Mat Mat Machines Accessed 7 | . . 6 1 Terminals 5 | . . 5 . Fabricators . | . . . . Repair Stations 1 | . . . 1 Recycling Units 1 | . . 1 . Scanalyzers . | . . . . Garrison Access . | . . . . Total Hacks 21 | . . 16 5 Successful 15 | . . 12 3 Failed 6 | . . 4 2 Catastrophic . | . . . . Database Lockouts . | . . . . Manual . | . . . . Terminals 14 | . . 14 . Fabricators . | . . . . Repair Stations 5 | . . . 5 Recycling Units 2 | . . 2 . Scanalyzers . | . . . . Garrison Access . | . . . . Terminal Hacks 11 | . . 11 . Record 3 | . . 3 . Alert Level 3 | . . 3 . Unreport Threat 2 | . . 2 . Dispatch Records 1 | . . 1 . Patrol Status 1 | . . 1 . Recall Investigation 1 | . . 1 . Fabricator Hacks . | . . . . Repair Station Hacks 3 | . . . 3 Scan Component 2 | . . . 2 Repair 1 | . . . 1 Recycling Unit Hacks 1 | . . 1 . Retrieve Matter 1 | . . 1 . Scanalyzer . | . . . . Garrison Access Hacks . | . . . . Unauthorized Hacks . | . . . . Terminals . | . . . . Fabricators . | . . . . Repair Stations . | . . . . Recycling Units . | . . . . Scanalyzers . | . . . . Garrison Access . | . . . . Data Cores Recovered . | . . . . Used . | . . . . Hacking Detections 5 | . . 4 1 Full Trace Events 1 | . . . 1 Feedback Events . | . . . . Feedback Blocked . | . . . . Robot Schematics Acquired . | . . . . Robots Built . | . . . . Authchips . | . . . . Time . | . . . . Total Robot Build Rating . | . . . . Part Schematics Acquired . | . . . . Parts Built . | . . . . Authchips . | . . . . Time . | . . . . Total Part Build Rating . | . . . . Parts Repaired 1 | . . . 1 Time 26 | . . . 26 Parts Recycled . | . . . . Recycled Matter . | . . . . Retrieved Matter 139 | . . 139 . Retrieved Components . | . . . . Parts Scanalyzed . | . . . . Part Schematics Acquired . | . . . . Parts Damaged . | . . . . Bothacking | -11 -10 -9 -8 ------------ Run | Yrd Mat Mat Mat Used RIF Installer . | . . . . Robots Hacked . | . . . . Non-combat . | . . . . Combat . | . . . . Robot Hacks Applied . | . . . . Relay Couplers Released . | . . . . Fabnet Peak Effective % . | . . . . Robots Rewired . | . . . . Allies Hacked . | . . . . Hacks Repelled . | . . . . Allies | -11 -10 -9 -8 -------- Run | Yrd Mat Mat Mat Total Allies . | . . . . Largest Group . | . . . . Highest-Rated Group . | . . . . Highest-Rated Ally . | . . . . Total Orders . | . . . . Ally Attacks . | . . . . Total Damage . | . . . . Kills . | . . . . Allies Corrupted . | . . . . Allies Melted . | . . . . Intel | -11 -10 -9 -8 ------- Run | Yrd Mat Mat Mat Active Infowar (turns) 217 | . . . 217 Optics 217 | . . . 217 Robot Analysis Total . | . . . . Derelict Logs Recovered . | . . . . Drone Launches . | . . . . Drone Recoveries . | . . . . Exploration | -11 -10 -9 -8 ------------- Run | Yrd Mat Mat Mat Turns Passed 1840 | 66 288 797 689 Spaces Moved 752 | 48 152 348 204 Core 46 | 31 . . 15 Treads 622 | 17 152 348 105 Legs 84 | . . . 84 Wheels . | . . . . Hover . | . . . . Flight . | . . . . Fastest Speed 50 | 50 160 160 122 Average Speed 174 | 100 160 163 222 Slowest Speed 750 | 160 160 240 750 Overloaded Moves . | . . . . Propulsion Burnouts . | . . . . Robots Hopped . | . . . . Potential Cave-ins . | . . . . Cave-ins Triggered . | . . . . Exploration Rate (%) 21 | 4 32 35 14 Regions Visited 3 Branch Regions . Pre-discovered Areas . | . . . . Known Exits Taken . | . . . . Unknown Exits Taken 3 | 1 1 1 . Scrap Searched . | . . . . Spaces Dug . | . . . . Terrain Destroyed 242 | . 15 152 75 Melee . | . . . . Projectile . | . . . . AOE 242 | . 15 152 75 Terrain Rammed . | . . . . Walls Destroyed . | . . . . Machines Disabled . | . . . . Actions | -11 -10 -9 -8 --------- Run | Yrd Mat Mat Mat Total 1149 | 67 180 520 382 Wait 207 | 2 . 104 101 Move 749 | 47 151 347 204 Hop . | . . . . Pick Up 53 | 9 13 11 20 Fast Attach 2 | 1 1 . . Attach 33 | 5 1 9 18 Detach 2 | . . . 2 Swap 9 | . 3 6 . Drop 17 | 3 3 6 5 Fire 59 | . 8 37 14 Melee . | . . . . Ram 15 | . . . 15 Kick 3 | . . . 3 Crush . | . . . . Escape Stasis . | . . . . Rewire . | . . . . Trap . | . . . . Miscellaneous . | . . . . Route ------- -11/Scrapyard -10/Materials -9/Materials -8/Materials History --------- Turn | Location | Event 17 | -11/Scrapyard | Discovered new exit (range 16) 67 | -11/Scrapyard | Entered Materials 68 | -10/Materials | Met a group of wandering Federalists 281 | -10/Materials | Discovered new exit (range 15) 313 | -10/Materials | Build established: Mutant 355 | -10/Materials | Entered another Materials area 355 | -9/Materials | Evolved 2 slots: Propulsion x1, Utility x1 749 | -9/Materials | Core integrity fell below 50% 792 | -9/Materials | Destroyed 7 combat bots 799 | -9/Materials | Lost 4 parts (2n1u1w) 1098 | -9/Materials | Discovered new exit (range 15) 1152 | -9/Materials | Entered another Materials area 1152 | -8/Materials | Evolved 2 slots: Propulsion x1, Utility x1 1392 | -8/Materials | Repaired Lgt. Treads 1494 | -8/Materials | Lost 3 parts (1n2w) 1525 | -8/Materials | Core integrity fell below 50% 1547 | -8/Materials | Core integrity fell below 20% 1553 | -8/Materials | Lost 4 parts (1p3u) 1841 | -8/Materials | Destroyed by Y-45 Defender with Beam Rifle Last Messages --------------- 01788_ K-01 Serf cleans the Terminal. 01789_ U-05 Engineer lays Concrete. 01791_ U-05 Engineer builds a Wall. 01792_ K-01 Serf cleans the Terminal. 01796_ U-05 Engineer builds a Wall. 01799_ Grenade Launcher destroyed. 01802_ U-05 Engineer lays Concrete. 01815_ VSBZ9TL=AI7Y#LE=TU2WIKFCUGNQXGHAJK 01823_ Hpw. Shotgun destroyed. 01826_ Critical hit (Burn: +24). 01826_ Insulated Plating destroyed. 01829_ Critical hit (Burn: +24). 01830_ Acquired Adv. Targeting Computer. 01835_ Critical hit (Burn: +23). 01837_ Kicked Y-45 Defender out of the way. 01838_ System corrupted: Matter fused (-8). 01838_ Kicked Y-45 Defender. 01838_ Heat Sink destroyed. 01839_ Kicked Y-45 Defender out of the way. 01841_ Critical hit (Burn: +24). Map ----- +----------------------------------------------------+ | ????????????? ???????????????????????????????????? | | ????????????? ???????????????????????????????????? | | ????????????? ???????????????????????????????????? | | ????????????? ???????????????????????????????????? | | ????? ??????? ???????????????????????????????????? | | ????? ??????? ???????????????????????????????????? | | ????? ??????# #??????????????????????????????????? | | ????? ??????# #??????????????????????????????????? | | ????? ??????# #??????????????????????????????????? | | ##### ??????# #??????????????????????????????????? | | # #?????# #??????????????????????????????????? | | # +?????# #??????????????????????????????????? | | # #?????# #??????????????????????????????????? | | # #?????# #??????????????????????????????????? | | # #?????# #??????????????????????????????????? | | # #?????#*#??????????????????????????????????? | | # #######+#??????????????????????????????????? | | # ## ! #??????????????????????????????????? | | #### # T #??????????????????????????????????? | | # ## #??????????????????????????????????? | | ## # #??????###?????????????????????????? | | !! # # ######## #?????????????????????????? | | !! # # # #?????????????????????????? | | ## # # +#### """ ###+####??????????????????? | | # """ # #??????????????????? | | """ g/ @[! #??????????????????? | | ! # Y #Y [! #??????????????????? | | +# +#### """ !# +??????????????????? | | ## """ ####+###??????????????????? | | # ## """ #?????????????????????????? | | # ## #?????????????????????????? | | # ###########?????????????????????????? | | """ """# #???????????????????????????????????? | | """ R"# #???????????????????????????????????? | | """ """# #???????????????????????????????????? | | # #???????????????????????????????????? | | ######### #???????????????????????????????????? | | ????????######???????????????????????????????????? | | ?????????????????????????????????????????????????? | | ?????????????????????????????????????????????????? | | ?????????????????????????????????????????????????? | | ?????????????????????????????????????????????????? | | ?????????????????????????????????????????????????? | | ?????????????????????????????????????????????????? | | ?????????????????????????????????????????????????? | | ?????????????????????????????????????????????????? | | ?????????????????????????????????????????????????? | | ?????????????????????????????????????????????????? | | ?????????????????????????????????????????????????? | | ?????????????????????????????????????????????????? | +----------------------------------------------------+ Best States ------------- Heat Dissipation 41 Energy Generation 14 Energy Capacity 515 Matter Stores 300 Matter Capacity 300 Sight Range 20 Terrain Scan Density 10 Armor Coverage 375 Resistance: KI 20 Resistance: TH 20 Resistance: EX 20 Resistance: EM 35 Resistance: I 20 Resistance: S 20 Resistance: P 20 Core Shielding 20 Evasion (%) 55 Targeting Accuracy 8 Recoil Reduction 3 Offensive Hacking 10 Item Schematics ----------------- None Robot Schematics ------------------ None Fabricated ------------ Nothing Repaired ---------- Lgt. Treads | 9% | -8/Materials Alien Tech Used ----------------- None Achievements -------------- Everything Is Under Control Challenges ------------ None Game ------ Seed ConceptNeutronShearcannon Manual? 0 Play Time 00:21:47 Cumulative 5.3 hours Start 2025.05.18 @ 20:51:26 End 2025.05.18 @ 21:11:24 Sessions 1 Manual Loads 0 Difficulty Adventurer Special Mode None Game No. 7 Rogue 0 Adventurer 7 Explorer 0 Win Type - Total 0 Types 0/0/0/0/0/0/0/0/0/0 Lore% 0 Gallery% 12 Achievement% 12 Wizard Run 0 Options --------- Layout 0 ASCII 0 Keyboard 0 Movement Mouse Keybinds 0 Fullscreen 1 Font 18/SmallcapsGlow Map View 112x50 Zoom Use 0% Tactical HUD 1 Map Filters NONE Filters NONE Steam 1 RUN: e1d24005-56d8-4ba2-9e8e-931be5853ef5